bitfinex-derivatives/quotes_SOLF0:USTF0_20240815
["timestamp","ask_amount","ask_price","bid_price","bid_amount"]
[1723721454743,0.0467058,143.26,143.23,33.55369546]
[1723721455150,0.0467058,143.26,143.24,3.4899]
[1723721455351,0.0467058,143.26,143.25,33.5]
[1723721455643,1.3282,143.32,143.27,3.4892]
[1723721455644,3.4888,143.3,143.27,3.4892]
[1723721456052,1.3282,143.32,143.27,3.4892]
[1723721456253,3.4891,143.29,143.27,3.4892]
[1723721457050,3.53340557,143.29,143.27,3.54264973]
[1723721457644,3.4891,143.28,143.27,0.05344973]
[1723721457846,0.04430557,143.29,143.27,0.05344973]
[1723721458451,3.53330557,143.29,143.27,3.54284973]
[1723721458655,0.04430557,143.29,143.27,0.05344973]
[1723721459147,3.4891,143.28,143.27,0.05344973]
[1723721459346,46.65430557,143.29,143.19,46.61]
[1723721459546,1.3258,143.27,143.19,46.61]
[1723721459748,1.3258,143.27,143.19,41.85]
[1723721459948,1.332,143.26,143.19,41.85]
[1723721460348,1.332,143.26,143.16,41.85]
[1723721460550,0.05164544,143.24,143.21,0.05323326]
[1723721460748,3.4907,143.22,143.21,0.05323326]
[1723721461049,0.05164544,143.24,143.21,0.05323326]
[1723721461352,0.05164544,143.24,143.21,41.90323326]
[1723721461753,3.54184544,143.24,143.22,3.4904]
[1723721462146,3.54184544,143.24,143.21,41.90323326]
[1723721462147,0.05164544,143.24,143.21,0.05323326]
[1723721462348,3.4906,143.22,143.21,0.05323326]
[1723721463149,0.05164544,143.24,143.21,0.05323326]
[1723721463549,3.4903,143.23,143.21,0.05323326]
[1723721463856,0.05164544,143.24,143.21,0.05323326]
[1723721464161,3.4905,143.23,143.21,3.54393326]
[1723721464753,0.05164544,143.24,143.23,3.4903]
[1723721465061,0.05164544,143.24,143.21,0.05323326]
[1723721466454,3.4906,143.22,143.21,0.05323326]
[1723721468555,3.4915,143.19,143.14,41.85]
[1723721468757,1.3313,143.21,143.14,41.85]
[1723721468957,1.3313,143.21,143.16,3.4919]
[1723721469157,3.4915,143.19,143.13,41.85]
[1723721469654,1.3313,143.21,143.15,0.04943633]
[1723721469857,0.04868515,143.17,143.15,0.04943633]
[1723721470053,0.04868515,143.17,143.15,3.54153633]
[1723721470258,3.54058515,143.17,143.15,3.54153633]
[1723721470457,3.54058515,143.17,143.15,0.04943633]
[1723721470757,3.54058515,143.17,143.15,3.54163633]
[1723721470955,3.4921,143.16,143.15,3.54163633]
[1723721471160,0.04868515,143.17,143.15,3.54163633]
[1723721471557,3.54058515,143.17,143.15,3.54163633]
[1723721472253,0.04868515,143.17,143.15,0.04943633]
[1723721472757,0.04868515,143.17,143.15,3.54173633]
[1723721473170,3.4921,143.16,143.15,0.04943633]
[1723721474264,3.4927,143.14,143.08,41.85]
[1723721474457,1.2905,143.17,143.08,41.85]
[1723721474657,1.2905,143.17,143.13,3.4926]
[1723721474959,1.2905,143.17,143.08,41.85]
[1723721475160,1.2905,143.17,143.13,3.4927]
[1723721475460,0.04526725,143.14,143.11,0.04986195]
[1723721475658,0.04526725,143.14,143.11,3.54306195]
[1723721475852,3.493,143.13,143.11,0.04986195]
[1723721476260,3.493,143.13,143.11,3.54306195]
[1723721477063,3.493,143.12,143.11,0.04986195]
[1723721477961,3.4937,143.1,143.07,3.4941]
[1723721478259,3.4937,143.1,143.02,47.3756]
[1723721478458,3.4937,143.1,143.08,3.4939]
[1723721479260,3.54233458,143.1,143.08,3.54128966]
[1723721479565,3.4938,143.09,143.08,0.04738966]
[1723721482578,0.04863458,143.1,143.08,0.04738966]
[1723721483066,3.4937,143.09,143.08,0.04738966]
[1723721483258,0.04863458,143.1,143.08,0.04738966]
[1723721484171,3.4937,143.09,143.08,0.04738966]
[1723721486362,0.04863458,143.1,143.08,0.04738966]
[1723721486363,8.32223458,143.1,143.08,0.04738966]
[1723721486659,0.04863458,143.1,143.08,3.54128966]
[1723721486968,0.04863458,143.1,143.08,33.57738966]
[1723721487163,2.5674,143.18,143.09,33.53]
[1723721487358,1.3213,143.18,143.12,33.53]
[1723721487862,1.3213,143.18,143.15,3.4921]
[1723721488568,1.37445897,143.18,143.16,3.492]
[1723721488767,0.05315897,143.18,143.15,0.04724604]
[1723721488970,0.05315897,143.18,143.17,3.4918]
[1723721489573,0.05315897,143.18,143.15,0.04724604]
[1723721490870,3.4919,143.17,143.15,0.04724604]
[1723721491265,0.05315897,143.18,143.15,0.04724604]
[1723721492067,0.05315897,143.18,143.16,3.4919]
[1723721492477,3.54495897,143.18,143.15,3.53944604]
[1723721492674,3.54495897,143.18,143.15,0.04724604]
[1723721493181,3.54495897,143.18,143.16,3.492]
[1723721493572,0.05315897,143.18,143.15,0.04724604]
[1723721494781,3.54475897,143.18,143.16,3.4919]
[1723721495571,3.54475897,143.18,143.15,0.04724604]
[1723721496282,0.05315897,143.18,143.16,3.4919]
[1723721496781,3.54475897,143.18,143.16,3.4919]
[1723721497179,0.05315897,143.18,143.15,3.53944604]
[1723721497382,3.492,143.16,143.15,0.04724604]
[1723721498679,0.05315897,143.18,143.15,0.04724604]
[1723721500077,3.4919,143.17,143.15,3.53934604]
[1723721500287,0.05315897,143.18,143.15,0.04724604]
[1723721500586,3.4919,143.17,143.15,3.53954604]
[1723721500880,0.05315897,143.18,143.15,0.04724604]
[1723721501081,0.05315897,143.18,143.17,3.4918]
[1723721503679,0.05315897,143.18,143.15,0.04724604]
[1723721504282,3.492,143.16,143.15,0.04724604]
[1723721505284,37.022,143.16,143.15,0.04724604]
[1723721506479,33.58315897,143.18,143.15,0.04724604]
[1723721506685,4.83315897,143.18,143.15,3.53944604]
[1723721506875,38.36315897,143.18,143.15,0.04724604]
[1723721507081,3.492,143.16,143.15,0.04724604]
[1723721507987,37.022,143.16,143.15,0.04724604]
[1723721508190,33.53,143.16,143.07,33.53]
[1723721508383,33.53,143.14,143.07,33.53]
[1723721508578,33.53,143.14,143.1,3.4934]
[1723721508983,3.4928,143.13,143.1,3.4934]
[1723721509183,3.4928,143.13,143.05,39.1238]
[1723721509382,3.54112989,143.13,143.1,0.04570673]
[1723721509583,3.54112989,143.13,143.11,3.4932]
[1723721509886,3.493,143.12,143.1,0.04570673]
[1723721510085,0.04832989,143.13,143.1,0.04570673]
[1723721510291,0.04832989,143.13,143.12,3.493]
[1723721511083,0.04832989,143.13,143.11,3.4931]
[1723721511292,0.04832989,143.13,143.1,0.04570673]
[1723721511891,3.4933,143.11,143.1,0.04570673]
[1723721512489,37.0233,143.11,143.1,0.04570673]
[1723721513789,3.4933,143.11,143.1,0.04570673]
[1723721516191,4.84,143.12,143.1,0.04570673]
[1723721516588,3.4931,143.12,143.1,3.53900673]
[1723721517993,3.4931,143.12,143.1,0.04570673]
[1723721518196,3.4933,143.11,143.1,0.04570673]
[1723721519294,0.04832989,143.13,143.1,0.04570673]
[1723721519592,0.04832989,143.13,143.12,3.493]
[1723721520590,0.04832989,143.13,143.1,0.04570673]
[1723721520789,3.4933,143.11,143.1,0.04570673]
[1723721524988,4.7777,143.11,143.1,0.04570673]
[1723721525593,1.2844,143.11,143.02,4.84]
[1723721525795,1.2844,143.11,143.05,3.4946]
[1723721525994,33.53,143.1,143.05,3.4946]
[1723721526697,3.4941,143.08,143.05,3.4946]
[1723721526995,3.4941,143.08,143.06,3.53978743]
[1723721528997,0.04962052,143.09,143.06,0.04528743]
[1723721529599,3.4942,143.08,143.06,3.53978743]
[1723721529896,0.04962052,143.09,143.06,0.04528743]
[1723721530101,3.4942,143.07,143.06,0.04528743]
[1723721535106,33.53,143.08,143.06,0.04528743]
[1723721535300,0.04962052,143.09,143.06,19.31663008]
[1723721535605,0.04962052,143.09,143.08,3.494]
[1723721536195,0.04962052,143.09,143.07,19.26500928]
[1723721536196,3.54352052,143.09,143.07,19.26500928]
[1723721536603,0.04962052,143.09,143.06,0.04528743]
[1723721536907,0.04962052,143.09,143.07,19.26647517]
[1723721537297,3.494,143.08,143.07,19.26647517]
[1723721538499,3.54342052,143.09,143.07,19.26647517]
[1723721538798,0.04962052,143.09,143.07,19.26647517]
[1723721539401,0.04962052,143.09,143.08,19.26647517]
[1723721539601,0.04962052,143.09,143.07,52.79647517]
[1723721539804,0.04962052,143.09,143.08,19.26647517]
[1723721540008,0.04962052,143.09,143.08,22.76047517]
[1723721540409,0.04962052,143.09,143.08,22.7661538]
[1723721542103,33.53,143.17,143.08,52.8021538]
[1723721542104,3.4928,143.13,143.08,52.8021538]
[1723721542306,4.82,143.17,143.1,33.53]
[1723721542502,4.82,143.17,143.12,3.4929]
[1723721542702,38.35,143.17,143.07,0.8157]
[1723721542906,33.53,143.15,143.08,19.27044512]
[1723721543104,4.82,143.17,143.09,22.76404512]
[1723721543303,3.4931,143.12,143.06,33.53]
[1723721543601,37.10780317,143.13,143.1,0.05127192]
[1723721543804,3.4933,143.11,143.1,0.05127192]
[1723721544804,6.1044,143.12,143.1,0.05127192]
[1723721544805,0.04821369,143.12,143.1,0.05127192]
[1723721545403,0.04821369,143.12,143.11,3.4933]
[1723721546005,4.82,143.18,143.14,3.4924]
[1723721546305,4.82,143.18,143.1,33.53]
[1723721546505,33.53,143.19,143.13,3.4927]
[1723721547606,0.04834613,143.17,143.15,0.04924588]
[1723721548009,3.4922,143.16,143.15,0.04924588]
[1723721558414,0.04834613,143.17,143.16,3.492]
[1723721558714,0.04834613,143.17,143.15,0.04924588]
[1723721558915,0.04834613,143.17,143.16,3.492]
[1723721559119,40.9271,143.24,143.15,0.04924588]
[1723721559423,40.9271,143.24,143.2,3.4908]
[1723721559424,3.4904,143.23,143.2,3.4908]
[1723721560021,33.53,143.22,143.14,33.53]
[1723721560318,33.53,143.22,143.15,19.24290579]
[1723721560521,3.4911,143.2,143.17,3.4917]
[1723721560728,0.0508393,143.19,143.17,3.53866159]
[1723721561228,0.0508393,143.19,143.18,3.4916]
[1723721561720,3.4902,143.24,143.21,3.4907]
[1723721561922,1.2661,143.27,143.18,33.53]
[1723721562125,38.35,143.31,143.2,33.53]
[1723721562428,4.82,143.33,143.22,33.53]
[1723721562722,3.4888,143.3,143.24,33.53]
[1723721562925,0.05221221,143.29,143.26,0.0494278]
[1723721563624,0.05221221,143.29,143.26,33.5794278]
[1723721563826,0.05221221,143.29,143.28,3.4891]
[1723721564625,0.05221221,143.29,143.28,8.3091]
[1723721567126,41.89,143.41,143.28,46.71]
[1723721567327,41.89,143.41,143.3,41.89]
[1723721567328,0.39739655,143.4,143.3,41.89]
[1723721567534,3.4872,143.36,143.3,41.89]
[1723721567734,41.89,143.39,143.28,46.71]
[1723721567933,3.8502,143.43,143.28,46.71]
[1723721568135,41.89,143.4,143.29,4.82]
[1723721568337,0.04910764,143.37,143.34,0.04911201]
[1723721568532,3.53620764,143.37,143.34,0.04911201]
[1723721568831,3.53620764,143.37,143.34,3.53661201]
[1723721569135,3.53620764,143.37,143.35,3.4873]
[1723721569136,0.04910764,143.37,143.35,3.4873]
[1723721570335,3.53600764,143.37,143.34,0.04911201]
[1723721570734,3.53600764,143.37,143.35,3.4873]
[1723721570938,0.04910764,143.37,143.35,3.4873]
[1723721571237,0.04910764,143.37,143.36,3.4872]
[1723721572041,2.5806,143.43,143.36,41.89]
[1723721572335,6.0662,143.43,143.36,41.89]
[1723721572534,2.5806,143.43,143.36,41.89]
[1723721573132,43.1326,143.47,143.36,41.89]
[1723721573337,0.04443192,143.41,143.38,0.04500453]
[1723721573539,0.04443192,143.41,143.4,3.4862]
[1723721573933,45.7315,143.47,143.4,3.4862]
[1723721574137,3.4857,143.43,143.4,3.4862]
[1723721574443,0.04807279,143.42,143.39,0.05279618]
[1723721574636,3.56194297,143.48,143.39,0.05279618]
[1723721574835,41.89,143.52,143.4,46.95]
[1723721575037,3.48500711,143.5,143.4,46.95]
[1723721575239,0.39690147,143.49,143.4,46.95]
[1723721575441,3.48500711,143.5,143.4,46.95]
[1723721575641,3.4844,143.48,143.4,46.95]
[1723721575844,41.89,143.52,143.46,3.4845]
[1723721576142,3.4847,143.47,143.4,46.95]
[1723721576335,41.93927535,143.5,143.41,5.06]
[1723721576539,10.46072039,143.53,143.38,41.89]
[1723721576540,41.89,143.48,143.38,41.89]
[1723721576744,3.4853,143.44,143.38,46.95]
[1723721577040,3.96144232,143.47,143.42,0.04497739]
[1723721577243,3.9149,143.47,143.42,0.04497739]
[1723721577446,0.04995031,143.46,143.42,0.04497739]
[1723721577846,3.4851,143.45,143.42,0.04497739]
[1723721578042,0.04995031,143.46,143.42,0.04497739]
[1723721578443,0.04995031,143.46,143.45,3.485]
[1723721579240,0.04995031,143.46,143.42,0.04497739]
[1723721579845,0.04995031,143.46,143.42,3.53057739]
[1723721580745,3.4853,143.44,143.42,0.04497739]
[1723721580943,0.04995031,143.46,143.42,0.04497739]
[1723721581140,3.53495031,143.46,143.43,3.4853]
[1723721581346,0.04995031,143.46,143.42,0.04497739]
[1723721581945,3.4851,143.45,143.43,3.4854]
[1723721582852,3.53485031,143.46,143.43,3.4854]
[1723721583351,3.53485031,143.46,143.44,3.4852]
[1723721583557,3.53485031,143.46,143.42,0.04497739]
[1723721584053,3.485,143.45,143.43,3.4853]
[1723721584247,0.04995031,143.46,143.42,0.04497739]
[1723721584447,3.4851,143.45,143.42,0.04497739]
[1723721585153,0.04995031,143.46,143.42,0.04497739]
[1723721585353,0.04995031,143.46,143.43,41.89]
[1723721585554,0.04995031,143.46,143.44,3.485]
[1723721585746,0.04995031,143.46,143.43,41.89]
[1723721586254,0.04995031,143.46,143.45,3.485]
[1723721586652,0.04995031,143.46,143.43,41.89]
[1723721586851,0.04995031,143.46,143.45,3.485]
[1723721587847,0.04995031,143.46,143.42,0.04497739]
[1723721589061,3.53979663,143.45,143.37,33.45]
[1723721589255,2.6355,143.44,143.38,3.4866]
[1723721589557,36.0855,143.44,143.29,6.9776]
[1723721589760,3.4866,143.39,143.34,33.45]
[1723721589955,36.0855,143.44,143.36,3.4872]
[1723721590256,3.4868,143.38,143.34,33.45]
[1723721590560,33.45,143.42,143.32,33.45]
[1723721590859,3.4862,143.4,143.39,0.05343304]
[1723721591052,0.05371535,143.41,143.34,3.4877]
[1723721591253,0.05371535,143.41,143.32,33.45]
[1723721591558,33.45,143.4,143.33,3.4878]
[1723721591760,13.01426058,143.44,143.32,33.45]
[1723721591954,42.25727069,143.43,143.34,3.4874]
[1723721592155,41.86,143.43,143.32,41.86]
[1723721592356,3.4868,143.38,143.35,3.4873]
[1723721592554,3.4868,143.38,143.37,0.04447303]
[1723721592958,3.53567482,143.39,143.37,0.04447303]
[1723721593663,0.04907482,143.39,143.27,5.06]
[1723721593862,41.90907482,143.39,143.29,41.86]
[1723721594063,3.4878,143.34,143.31,3.4883]
[1723721594266,1.3192,143.38,143.29,41.86]
[1723721594657,1.2733,143.37,143.29,41.86]
[1723721594851,1.2733,143.37,143.32,0.05000105]
[1723721595064,3.5412516,143.35,143.32,0.05000105]
[1723721595663,3.5412516,143.35,143.33,3.4877]
[1723721596764,0.0536516,143.35,143.33,3.4877]
[1723721596965,0.0536516,143.35,143.34,3.4877]
[1723721600971,1.3587,143.42,143.41,3.486]
[1723721601263,3.4856,143.43,143.41,3.486]
[1723721601564,3.4853,143.44,143.42,3.4857]
[1723721601959,1.2802,143.46,143.42,3.4857]
[1723721602267,1.2802,143.46,143.38,41.86]
[1723721602565,0.05258356,143.44,143.42,0.05167505]
[1723721602959,0.05258356,143.44,143.43,3.4855]
[1723721603160,3.485,143.45,143.4,41.86]
[1723721603564,3.485,143.45,143.43,3.4854]
[1723721603865,3.53565066,143.45,143.43,3.4854]
[1723721604260,3.4852,143.44,143.42,3.53932973]
[1723721604461,0.05065066,143.45,143.42,3.53932973]
[1723721604661,0.05065066,143.45,143.42,0.05372973]
[1723721604864,0.05065066,143.45,143.44,3.4852]
[1723721607462,0.05065066,143.45,143.42,0.05372973]
[1723721607770,3.53585066,143.45,143.42,0.05372973]
[1723721607971,3.53585066,143.45,143.43,3.4854]
[1723721608172,0.05065066,143.45,143.43,3.4854]
[1723721608370,0.05065066,143.45,143.42,0.05372973]
[1723721608872,3.53575066,143.45,143.42,0.05372973]
[1723721609170,0.05065066,143.45,143.42,0.05372973]
[1723721609468,3.4854,143.44,143.42,3.53932973]
[1723721609669,3.4854,143.44,143.42,0.05372973]
[1723721610067,3.4855,143.43,143.42,0.05372973]
[1723721610264,0.05065066,143.45,143.42,0.05372973]
[1723721610669,3.53585066,143.45,143.42,0.05372973]
[1723721610970,3.53585066,143.45,143.42,3.53922973]
[1723721611471,3.4853,143.44,143.42,3.53922973]
[1723721611662,3.4853,143.44,143.42,0.05372973]
[1723721611872,3.4855,143.43,143.42,0.05372973]
[1723721612467,4.8473,143.43,143.42,0.05372973]
[1723721613271,3.4862,143.4,143.35,33.46]
[1723721613469,1.3618,143.43,143.35,33.46]
[1723721613668,3.4861,143.41,143.35,33.46]
[1723721613864,3.4861,143.41,143.39,3.4863]
[1723721614373,3.53601274,143.41,143.39,3.53858076]
[1723721615069,3.4862,143.4,143.39,0.05228076]
[1723721616862,3.4872,143.37,143.33,33.46]
[1723721617274,3.4872,143.37,143.34,3.4875]
[1723721617770,3.4872,143.36,143.34,3.4875]
[1723721617970,33.46,143.42,143.33,33.46]
[1723721618375,3.487,143.37,143.35,3.4873]
[1723721618669,0.0520485,143.36,143.35,3.4873]
[1723721619777,0.0520485,143.36,143.35,36.9473]
[1723721622477,0.0520485,143.36,143.35,3.4873]
[1723721624471,0.0520485,143.36,143.35,36.9473]
[1723721626081,0.0520485,143.36,143.34,0.04613098]
[1723721626483,3.4874,143.35,143.34,0.04613098]
[1723721626679,0.0520485,143.36,143.34,3.53383098]
[1723721626983,3.5393485,143.36,143.34,3.53383098]
[1723721627388,0.0520485,143.36,143.34,3.53383098]
[1723721628283,0.0520485,143.36,143.34,0.04613098]
[1723721628284,3.4874,143.35,143.34,0.04613098]
[1723721633380,0.0520485,143.36,143.34,0.04613098]
[1723721633381,3.5394485,143.36,143.34,0.04613098]
[1723721633585,0.0520485,143.36,143.34,0.04613098]
[1723721633782,0.0520485,143.36,143.34,3.53373098]
[1723721633983,3.5393485,143.36,143.34,3.53373098]
[1723721634387,3.4874,143.35,143.34,0.04613098]
[1723721638984,0.0520485,143.36,143.34,0.04613098]
[1723721645189,0.0520485,143.36,143.3,33.46]
[1723721645389,0.0520485,143.36,143.28,6.978]
[1723721645390,0.0520485,143.36,143.28,40.438]
[1723721645991,0.0520485,143.36,143.32,3.4881]
[1723721646495,0.0520485,143.36,143.33,0.04981989]
[1723721647189,0.0520485,143.36,143.26,38.42]
[1723721647391,33.46,143.35,143.26,33.46]
[1723721647595,40.435,143.35,143.29,3.4889]
[1723721648188,3.4886,143.3,143.28,3.489]
[1723721648596,33.46,143.33,143.24,33.46]
[1723721648790,33.46,143.33,143.22,6.981]
[1723721649096,11.9364,143.32,143.31,0.04950882]
[1723721649290,11.9364,143.32,143.23,3.4902]
[1723721649487,11.9364,143.32,143.17,4.96]
[1723721649488,33.46,143.28,143.17,4.96]
[1723721649689,1.3105,143.31,143.18,19.18276497]
[1723721649690,33.46,143.26,143.18,19.18276497]
[1723721649899,33.46,143.26,143.16,34.2155]
[1723721649900,4.96,143.25,143.16,34.2155]
[1723721650196,6.2705,143.25,143.18,33.46]
[1723721650391,3.4905,143.23,143.2,3.4911]
[1723721650699,6.2705,143.25,143.2,3.4911]
[1723721650893,6.2705,143.25,143.16,0.7555]
[1723721650894,6.2705,143.25,143.19,3.4912]
[1723721651195,0.04893474,143.23,143.2,0.04880778]
[1723721651388,3.4908,143.22,143.2,0.04880778]
[1723721651802,0.04893474,143.23,143.2,0.04880778]
[1723721652296,3.4908,143.21,143.2,0.04880778]
[1723721652793,0.04893474,143.23,143.2,0.04880778]
[1723721653296,3.4908,143.21,143.2,0.04880778]
[1723721657003,3.4908,143.21,143.2,0.04880778]
[1723721659098,0.04893474,143.23,143.2,0.04880778]
[1723721659298,5.00893474,143.23,143.2,0.04880778]
[1723721659499,0.04893474,143.23,143.2,0.04880778]
[1723721660094,0.04893474,143.23,143.22,3.4906]
[1723721660298,2.6443,143.31,143.21,38.28]
[1723721660497,1.2956,143.31,143.27,3.4893]
[1723721660702,1.2956,143.31,143.25,33.46]
[1723721660903,1.2956,143.31,143.23,33.46]
[1723721661199,1.2956,143.31,143.26,3.4896]
[1723721661396,1.2723,143.33,143.25,33.46]
[1723721661604,0.04774675,143.28,143.26,0.05348391]
[1723721661804,2.6224,143.33,143.26,0.05348391]
[1723721662005,0.05156433,143.28,143.27,33.46]
[1723721662202,4.7602,143.33,143.31,3.4883]
[1723721662501,4.7602,143.33,143.27,33.46]
[1723721662697,1.2723,143.33,143.27,33.46]
[1723721663106,1.3366,143.36,143.29,33.46]
[1723721663407,3.4875,143.35,143.33,3.4879]
[1723721663707,0.05174838,143.31,143.29,33.46]
[1723721663902,0.05174838,143.31,143.3,36.9486]
[1723721664098,3.4875,143.35,143.3,33.46]
[1723721664295,0.05183606,143.32,143.3,33.46]
[1723721664504,0.05183606,143.32,143.29,0.0494592]
[1723721665497,3.4886,143.3,143.29,0.0494592]
[1723721665802,2.64703606,143.32,143.21,0.8632]
[1723721665803,33.46,143.31,143.21,4.82]
[1723721666004,3.4899,143.25,143.2,33.46]
[1723721666204,3.54643931,143.28,143.19,33.46]
[1723721666399,4.82,143.27,143.19,33.46]
[1723721666597,3.4904,143.23,143.21,3.4908]
[1723721666903,3.5361029,143.23,143.21,3.53650035]
[1723721667097,0.0457029,143.23,143.22,3.4906]
[1723721667706,0.0457029,143.23,143.21,3.53640035]
[1723721667899,0.0457029,143.23,143.21,0.04570035]
[1723721668297,3.5362029,143.23,143.21,3.53650035]
[1723721668505,0.0457029,143.23,143.21,0.04570035]
[1723721669107,3.4906,143.22,143.21,0.04570035]
[1723721669309,0.0457029,143.23,143.21,0.04570035]
[1723721669503,4.82,143.22,143.21,0.04570035]
[1723721670601,8.3106,143.22,143.21,0.04570035]
[1723721672211,3.4906,143.22,143.21,0.04570035]
[1723721672409,4.82,143.22,143.21,0.04570035]
[1723721673007,0.0457029,143.23,143.21,0.04570035]
[1723721673204,0.0457029,143.23,143.22,3.4906]
[1723721674512,8.3092,143.28,143.21,41.93570035]
[1723721675314,48.8663,143.33,143.21,41.93570035]
[1723721675508,4.82,143.32,143.26,3.4894]
[1723721675703,4.82,143.32,143.21,41.89]
[1723721675906,0.04726707,143.28,143.24,3.49]
[1723721676106,4.82,143.27,143.21,41.89]
[1723721676309,8.3095,143.27,143.25,0.04862143]
[1723721676905,3.4896,143.26,143.25,0.04862143]
[1723721677109,4.82,143.27,143.25,3.53852143]
[1723721677310,0.04726707,143.28,143.25,0.04862143]
[1723721677909,3.4895,143.27,143.25,0.04862143]
[1723721678317,3.4895,143.27,143.25,3.53842143]
[1723721678918,0.04726707,143.28,143.25,0.04862143]
[1723721679421,3.4895,143.27,143.25,3.53852143]
[1723721679620,0.04726707,143.28,143.25,0.04862143]
[1723721679819,4.82,143.27,143.25,0.04862143]
[1723721680022,3.4896,143.26,143.25,0.04862143]
[1723721684134,3.4907,143.22,143.17,41.89]
[1723721684421,3.4907,143.22,143.2,3.4909]
[1723721684921,44.4917,143.27,143.17,41.89]
[1723721685115,4.82,143.26,143.17,41.89]
[1723721685315,4.82,143.26,143.22,3.4905]
[1723721685316,3.4902,143.24,143.22,3.4905]
[1723721685517,0.0531357,143.23,143.22,3.4905]
[1723721685931,0.0531357,143.23,143.21,0.04732536]
[1723721686328,3.4906,143.22,143.21,0.04732536]
[1723721686626,0.0531357,143.23,143.21,0.04732536]
[1723721686828,0.0531357,143.23,143.22,3.4906]
[1723721689141,0.0531357,143.23,143.21,3.53802536]
[1723721689334,0.0531357,143.23,143.21,0.04732536]
[1723721689930,3.4906,143.22,143.21,0.04732536]
[1723721698346,3.4914,143.19,143.14,33.51]
[1723721699053,3.4912,143.2,143.18,3.4916]
[1723721699547,3.54153045,143.2,143.18,3.54181332]
[1723721700547,0.05033045,143.2,143.19,3.4913]
[1723721707556,3.54143045,143.2,143.18,0.05021332]
[1723721708150,3.54143045,143.2,143.18,3.54161332]
[1723721708758,3.54143045,143.2,143.19,3.4913]
[1723721708759,0.05033045,143.2,143.19,3.4913]
[1723721710556,0.05033045,143.2,143.18,0.05021332]
[1723721711052,3.4913,143.19,143.18,0.05021332]
[1723721711451,0.05033045,143.2,143.18,0.05021332]
[1723721711646,3.54163045,143.2,143.18,3.54171332]
[1723721713258,3.4913,143.19,143.18,3.54171332]
[1723721713454,3.4913,143.19,143.18,0.05021332]
[1723721713962,3.4913,143.19,143.18,3.54181332]
[1723721714651,3.54153045,143.2,143.18,3.54181332]
[1723721714848,3.54153045,143.2,143.19,3.4913]
[1723721715758,3.54153045,143.2,143.18,3.54171332]
[1723721715959,3.4913,143.19,143.18,0.05021332]
[1723721717458,36.15733045,143.2,143.11,33.51]
[1723721717658,33.51,143.17,143.07,33.51]
[1723721717859,3.4929,143.13,143.11,3.4931]
[1723721718159,4.96,143.16,143.11,3.4931]
[1723721718560,3.4932,143.12,143.1,3.4934]
[1723721719055,0.04428701,143.15,143.1,3.4934]
[1723721719258,33.51,143.13,143.02,40.5009]
[1723721719562,4.82275065,143.12,143.03,19.297791]
[1723721719855,3.54114934,143.09,143.07,3.4941]
[1723721720361,0.04734934,143.09,143.08,3.494]
[1723721721560,0.04734934,143.09,143.06,0.04585634]
[1723721721561,3.54114934,143.09,143.07,3.4941]
[1723721722554,3.4941,143.08,143.06,3.54025634]
[1723721722759,0.04734934,143.09,143.06,0.04585634]
[1723721723262,0.04734934,143.09,143.08,3.494]
[1723721725153,3.54114934,143.09,143.07,3.494]
[1723721725956,3.494,143.08,143.06,3.54025634]
[1723721726258,0.04734934,143.09,143.06,0.04585634]
[1723721726458,3.54124934,143.09,143.06,0.04585634]
[1723721726663,3.54124934,143.09,143.07,3.4941]
[1723721727063,0.04734934,143.09,143.06,0.04585634]
[1723721727254,33.51,143.08,143.06,0.04585634]
[1723721727658,3.4942,143.07,143.06,0.04585634]
[1723721728865,37.0041,143.08,143.06,0.04585634]
[1723721729061,3.4941,143.08,143.06,0.04585634]
[1723721729564,3.4942,143.07,143.06,0.04585634]
[1723721731070,3.4942,143.08,143.06,0.04585634]
[1723721731368,38.45734934,143.09,143.06,0.04585634]
[1723721731369,4.94734934,143.09,143.06,3.54035634]
[1723721731659,8.44134934,143.09,143.06,0.04585634]
[1723721731859,8.44134934,143.09,143.07,3.4942]
[1723721732267,8.44134934,143.09,143.06,0.04585634]